[Event "Live Chess"]
[Site "Chess.com"]
[Date "2024.06.02"]
[Round "-"]
[White "TigerTank70"]
[Black "NAZRIZ1977"]
[Result "1/2-1/2"]
[WhiteElo "2232"]
[BlackElo "2154"]
[TimeControl "300"]
[EndTime "16:45:12 PDT"]
[Termination "Game drawn - insufficient material"]

1. e4 {[%clk 0:04:57.8]} 1... c5 {[%clk 0:04:58.9]} 2. d4 {[%clk 0:04:56.6]}
2... cxd4 {[%clk 0:04:57.9]} 3. c3 {[%clk 0:04:56.2]} 3... Nf6 {[%clk
0:04:57.2]} 4. e5 {[%clk 0:04:54.6]} 4... Nd5 {[%clk 0:04:56.4]} 5. Bc4 {[%clk
0:04:53.8]} 5... Nb6 {[%clk 0:04:55.2]} 6. Bb3 {[%clk 0:04:53.3]} 6... Nc6
{[%clk 0:04:52.7]} 7. Nf3 {[%clk 0:04:52.2]} 7... d6 {[%clk 0:04:50.8]} 8. exd6
{[%clk 0:04:45.2]} 8... Qxd6 {[%clk 0:04:49.7]} 9. O-O {[%clk 0:04:44.8]} 9...
g6 {[%clk 0:04:46.8]} 10. cxd4 {[%clk 0:04:41.5]} 10... Bg7 {[%clk 0:04:45.2]}
11. Be3 {[%clk 0:04:38.9]} 11... O-O {[%clk 0:04:41.1]} 12. Nc3 {[%clk
0:04:37.4]} 12... Bg4 {[%clk 0:04:39]} 13. d5 {[%clk 0:04:26.4]} 13... Ne5
{[%clk 0:04:29.2]} 14. Ne4 {[%clk 0:04:14.1]} 14... Bxf3 {[%clk 0:04:20.8]} 15.
gxf3 {[%clk 0:04:05.1]} 15... Qd7 {[%clk 0:04:15.8]} 16. f4 {[%clk 0:03:56.1]}
16... Ng4 {[%clk 0:03:52.1]} 17. Bd4 {[%clk 0:03:47.9]} 17... e5 {[%clk
0:03:43.7]} 18. Nc5 {[%clk 0:03:36.2]} 18... Qf5 {[%clk 0:03:35.3]} 19. fxe5
{[%clk 0:03:15.7]} 19... Qh5 {[%clk 0:03:27.1]} 20. Kg2 {[%clk 0:03:02.2]} 20...
Qxh2+ {[%clk 0:03:16]} 21. Kf3 {[%clk 0:03:01.2]} 21... Nxe5+ {[%clk 0:03:04.6]}
22. Bxe5 {[%clk 0:02:56]} 22... Bxe5 {[%clk 0:03:02.4]} 23. Rh1 {[%clk
0:02:43.3]} 23... Qf4+ {[%clk 0:03:00.2]} 24. Kg2 {[%clk 0:02:42.4]} 24... Rac8
{[%clk 0:02:31.6]} 25. Nd3 {[%clk 0:02:40.5]} 25... Qg5+ {[%clk 0:02:28.1]} 26.
Kf1 {[%clk 0:02:35.7]} 26... Bg7 {[%clk 0:02:25.9]} 27. Qf3 {[%clk 0:02:32.6]}
27... Rcd8 {[%clk 0:02:12.7]} 28. Rd1 {[%clk 0:02:22.1]} 28... Nxd5 {[%clk
0:02:09.1]} 29. Rg1 {[%clk 0:01:44.9]} 29... Qf5 {[%clk 0:02:07.2]} 30. Qxf5
{[%clk 0:01:42.5]} 30... gxf5 {[%clk 0:02:05.8]} 31. Ne5 {[%clk 0:01:34.7]}
31... Kh8 {[%clk 0:01:47.7]} 32. Nxf7+ {[%clk 0:01:22.6]} 32... Rxf7 {[%clk
0:01:45.4]} 33. Rxd5 {[%clk 0:01:21.6]} 33... Rxd5 {[%clk 0:01:40.9]} 34. Bxd5
{[%clk 0:01:21.5]} 34... Rd7 {[%clk 0:01:33.6]} 35. Be6 {[%clk 0:01:20.3]} 35...
Rd1+ {[%clk 0:01:31.4]} 36. Kg2 {[%clk 0:01:17]} 36... Rxg1+ {[%clk 0:01:29.9]}
37. Kxg1 {[%clk 0:01:16.9]} 37... Bxb2 {[%clk 0:01:25.8]} 38. Bxf5 {[%clk
0:01:16.4]} 38... Kg7 {[%clk 0:01:23.6]} 39. f3 {[%clk 0:01:15]} 39... Bd4+
{[%clk 0:01:21.1]} 40. Kg2 {[%clk 0:01:12.8]} 40... h6 {[%clk 0:01:17.2]} 41.
Kh3 {[%clk 0:01:12.1]} 41... Kf6 {[%clk 0:01:16]} 42. Kg4 {[%clk 0:01:11.5]}
42... Be3 {[%clk 0:01:09.9]} 43. Be4 {[%clk 0:01:09.6]} 43... b5 {[%clk
0:01:03.2]} 44. Bc6 {[%clk 0:01:06.2]} 44... b4 {[%clk 0:01:01]} 45. Ba4 {[%clk
0:01:04.1]} 45... a5 {[%clk 0:01:00]} 46. Bb5 {[%clk 0:01:02]} 46... Bg5 {[%clk
0:00:58.7]} 47. Ba4 {[%clk 0:01:00]} 47... Bd2 {[%clk 0:00:55.9]} 48. Bb5 {[%clk
0:00:59.9]} 48... Ke5 {[%clk 0:00:54.8]} 49. Be8 {[%clk 0:00:57.8]} 49... Kd4
{[%clk 0:00:53.3]} 50. Bf7 {[%clk 0:00:56.8]} 50... Kc3 {[%clk 0:00:47.5]} 51.
f4 {[%clk 0:00:55.9]} 51... a4 {[%clk 0:00:41.8]} 52. f5 {[%clk 0:00:54.7]}
52... Bg5 {[%clk 0:00:38.9]} 53. Kh5 {[%clk 0:00:50]} 53... b3 {[%clk
0:00:37.7]} 54. axb3 {[%clk 0:00:48.9]} 54... axb3 {[%clk 0:00:30.1]} 55. Bxb3
{[%clk 0:00:43.2]} 55... Kxb3 {[%clk 0:00:29.2]} 56. f6 {[%clk 0:00:42.3]} 56...
Bxf6 {[%clk 0:00:26.1]} 57. Kxh6 {[%clk 0:00:40.9]} 1/2-1/2

[Event "Live Chess"]
[Site "Chess.com"]
[Date "2024.06.02"]
[Round "-"]
[White "KwikPhoenix"]
[Black "RichardABates"]
[Result "0-1"]
[WhiteElo "2419"]
[BlackElo "2330"]
[TimeControl "300"]
[EndTime "16:45:33 PDT"]
[Termination "RichardABates won by checkmate"]

1. b3 {[%clk 0:04:58.5]} 1... Nf6 {[%clk 0:04:57.8]} 2. Bb2 {[%clk 0:04:58.4]}
2... g6 {[%clk 0:04:56.8]} 3. Bxf6 {[%clk 0:04:57.5]} 3... exf6 {[%clk
0:04:55.5]} 4. c4 {[%clk 0:04:57.4]} 4... Bg7 {[%clk 0:04:53.4]} 5. Nc3 {[%clk
0:04:57]} 5... O-O {[%clk 0:04:51.9]} 6. g3 {[%clk 0:04:56.3]} 6... d6 {[%clk
0:04:50.9]} 7. Bg2 {[%clk 0:04:55.7]} 7... f5 {[%clk 0:04:49.7]} 8. Rc1 {[%clk
0:04:54.3]} 8... Nd7 {[%clk 0:04:48.6]} 9. e3 {[%clk 0:04:53.9]} 9... Nf6 {[%clk
0:04:47.3]} 10. Nge2 {[%clk 0:04:53]} 10... c6 {[%clk 0:04:46.3]} 11. d4 {[%clk
0:04:52.3]} 11... Re8 {[%clk 0:04:44.6]} 12. O-O {[%clk 0:04:51.8]} 12... h5
{[%clk 0:04:42.6]} 13. h4 {[%clk 0:04:50.6]} 13... Ng4 {[%clk 0:04:40.2]} 14.
Nf4 {[%clk 0:04:48.2]} 14... a5 {[%clk 0:04:38.4]} 15. a3 {[%clk 0:04:46.7]}
15... Bf6 {[%clk 0:04:30.4]} 16. Nh3 {[%clk 0:04:43.8]} 16... Bd7 {[%clk
0:04:27.2]} 17. b4 {[%clk 0:04:43]} 17... axb4 {[%clk 0:04:25.2]} 18. axb4
{[%clk 0:04:42.9]} 18... Qe7 {[%clk 0:04:21.5]} 19. b5 {[%clk 0:04:41.8]} 19...
Nxe3 {[%clk 0:04:11.3]} 20. fxe3 {[%clk 0:04:34.9]} 20... Qxe3+ {[%clk
0:04:09.8]} 21. Kh2 {[%clk 0:04:34.6]} 21... Bxd4 {[%clk 0:04:07.5]} 22. Rf3
{[%clk 0:04:27.6]} 22... Qe5 {[%clk 0:03:53.8]} 23. Ne2 {[%clk 0:04:16.9]} 23...
Bc5 {[%clk 0:03:52]} 24. Nef4 {[%clk 0:04:11.5]} 24... Ra2 {[%clk 0:03:48.2]}
25. Rc2 {[%clk 0:04:03.7]} 25... Ra1 {[%clk 0:03:40.9]} 26. Rc1 {[%clk
0:04:01.1]} 26... Rxc1 {[%clk 0:03:35.2]} 27. Qxc1 {[%clk 0:03:59.4]} 27... Be3
{[%clk 0:03:33.7]} 28. Qb1 {[%clk 0:03:53]} 28... Kg7 {[%clk 0:03:16.4]} 29. Qd3
{[%clk 0:03:42.8]} 29... cxb5 {[%clk 0:03:11.4]} 30. Nd5 {[%clk 0:03:41.7]}
30... Bd4 {[%clk 0:03:03.7]} 31. Nhf4 {[%clk 0:03:16.3]} 31... bxc4 {[%clk
0:02:56.1]} 32. Qxc4 {[%clk 0:03:15.3]} 32... Rc8 {[%clk 0:02:52.3]} 33. Qb3
{[%clk 0:03:10.9]} 33... Bc6 {[%clk 0:02:41.4]} 34. Rf1 {[%clk 0:02:59.7]} 34...
Ra8 {[%clk 0:02:27.7]} 35. Rd1 {[%clk 0:02:53.1]} 35... Ra1 {[%clk 0:02:21.7]}
36. Rxa1 {[%clk 0:02:41.4]} 36... Bxa1 {[%clk 0:02:19.7]} 37. Nb4 {[%clk
0:02:40.5]} 37... Bxg2 {[%clk 0:02:11.7]} 38. Nxg2 {[%clk 0:02:39.1]} 38... Bd4
{[%clk 0:02:08.1]} 39. Nd3 {[%clk 0:02:31.6]} 39... Qe4 {[%clk 0:01:56]} 40.
Ndf4 {[%clk 0:02:11]} 40... Be5 {[%clk 0:01:52.1]} 41. Nd5 {[%clk 0:01:50.8]}
41... Qe2 {[%clk 0:01:37.7]} 42. Nb6 {[%clk 0:01:29.7]} 42... Bd4 {[%clk
0:01:26.4]} 43. Qb1 {[%clk 0:01:12.6]} 43... Qf3 {[%clk 0:01:14.3]} 44. Qc1
{[%clk 0:00:39.4]} 44... Bf2 {[%clk 0:00:43]} 45. Qf4 {[%clk 0:00:38.4]} 45...
Qxf4 {[%clk 0:00:40.8]} 46. Nxf4 {[%clk 0:00:38]} 46... Bxb6 {[%clk 0:00:39.9]}
47. Nd5 {[%clk 0:00:37.9]} 47... Bc5 {[%clk 0:00:38.4]} 48. Kg2 {[%clk
0:00:37.8]} 48... b5 {[%clk 0:00:37.3]} 49. Kf3 {[%clk 0:00:37.4]} 49... b4
{[%clk 0:00:36.4]} 50. Ke2 {[%clk 0:00:35]} 50... f6 {[%clk 0:00:34.1]} 51. Nf4
{[%clk 0:00:32.7]} 51... Kf7 {[%clk 0:00:32.1]} 52. Kd3 {[%clk 0:00:30.8]} 52...
g5 {[%clk 0:00:30.9]} 53. Nxh5 {[%clk 0:00:27.8]} 53... Kg6 {[%clk 0:00:29.8]}
54. g4 {[%clk 0:00:24.5]} 54... fxg4 {[%clk 0:00:28.9]} 55. Ng3 {[%clk
0:00:24.4]} 55... gxh4 {[%clk 0:00:28]} 56. Nh1 {[%clk 0:00:24.3]} 56... g3
{[%clk 0:00:26.9]} 57. Ke2 {[%clk 0:00:22.9]} 57... g2 {[%clk 0:00:25.5]} 58.
Nf2 {[%clk 0:00:21.9]} 58... g1=Q {[%clk 0:00:23.3]} 59. Nd3 {[%clk 0:00:21.5]}
59... Qd4 {[%clk 0:00:21]} 60. Ne1 {[%clk 0:00:18.8]} 60... Qe3+ {[%clk
0:00:19.2]} 61. Kd1 {[%clk 0:00:17.7]} 61... b3 {[%clk 0:00:18.4]} 62. Nf3
{[%clk 0:00:15.1]} 62... Qxf3+ {[%clk 0:00:17.3]} 63. Kd2 {[%clk 0:00:15]} 63...
Bb4+ {[%clk 0:00:16.4]} 64. Kc1 {[%clk 0:00:14.4]} 64... Qe3+ {[%clk 0:00:15.6]}
65. Kb1 {[%clk 0:00:13.5]} 65... Qd3+ {[%clk 0:00:14.7]} 66. Kb2 {[%clk
0:00:13.4]} 66... Qc2+ {[%clk 0:00:13.8]} 67. Ka1 {[%clk 0:00:13.3]} 67... Qa2#
{[%clk 0:00:13.2]} 0-1

[Event "Live Chess"]
[Site "Chess.com"]
[Date "2024.06.02"]
[Round "-"]
[White "mychess51"]
[Black "MagnersCarlsberg2870"]
[Result "0-1"]
[WhiteElo "1760"]
[BlackElo "1782"]
[TimeControl "300"]
[EndTime "16:45:45 PDT"]
[Termination "MagnersCarlsberg2870 won by resignation"]

1. d4 {[%clk 0:04:53.3]} 1... Nf6 {[%clk 0:04:58.7]} 2. Nf3 {[%clk 0:04:53.2]}
2... b6 {[%clk 0:04:56.7]} 3. g3 {[%clk 0:04:52.2]} 3... Bb7 {[%clk 0:04:55.4]}
4. Bg2 {[%clk 0:04:52.1]} 4... d6 {[%clk 0:04:53.7]} 5. O-O {[%clk 0:04:52]}
5... g6 {[%clk 0:04:51.9]} 6. c4 {[%clk 0:04:50.9]} 6... Bg7 {[%clk 0:04:50.8]}
7. Nc3 {[%clk 0:04:50.4]} 7... O-O {[%clk 0:04:49.9]} 8. Bg5 {[%clk 0:04:47.6]}
8... Nbd7 {[%clk 0:04:48.6]} 9. Nh4 {[%clk 0:04:45]} 9... h6 {[%clk 0:04:46.7]}
10. Bxb7 {[%clk 0:04:41.2]} 10... hxg5 {[%clk 0:04:45.9]} 11. Bxa8 {[%clk
0:04:39.1]} 11... gxh4 {[%clk 0:04:45]} 12. Bg2 {[%clk 0:04:37.4]} 12... hxg3
{[%clk 0:04:41.9]} 13. fxg3 {[%clk 0:04:34.9]} 13... Ng4 {[%clk 0:04:37.7]} 14.
e4 {[%clk 0:04:28.6]} 14... Ne3 {[%clk 0:04:33.8]} 15. Qf3 {[%clk 0:04:24.5]}
15... Nxf1 {[%clk 0:04:26.8]} 16. Rxf1 {[%clk 0:04:20.5]} 16... Bxd4+ {[%clk
0:04:24.4]} 17. Kh1 {[%clk 0:04:19]} 17... Ne5 {[%clk 0:04:23.1]} 18. Qd1 {[%clk
0:04:16.8]} 18... c5 {[%clk 0:04:11.4]} 19. Qb3 {[%clk 0:04:04.4]} 19... Qd7
{[%clk 0:04:08.6]} 20. Ne2 {[%clk 0:04:01.6]} 20... Ng4 {[%clk 0:04:01.8]} 21.
Nxd4 {[%clk 0:03:59.2]} 21... cxd4 {[%clk 0:04:00.7]} 22. Qd1 {[%clk 0:03:55.9]}
22... e5 {[%clk 0:03:55.4]} 23. Bh3 {[%clk 0:03:37.1]} 23... Nf2+ {[%clk
0:03:50.8]} 24. Rxf2 {[%clk 0:03:36.1]} 24... Qxh3 {[%clk 0:03:49.5]} 25. Qf3
{[%clk 0:03:32.1]} 25... f5 {[%clk 0:03:43.3]} 26. b3 {[%clk 0:03:16.4]} 26...
Qg4 {[%clk 0:03:35]} 27. exf5 {[%clk 0:02:54.8]} 27... Qxf3+ {[%clk 0:03:33.1]}
28. Rxf3 {[%clk 0:02:52.2]} 28... gxf5 {[%clk 0:03:31.7]} 29. Kg2 {[%clk
0:02:48.3]} 29... e4 {[%clk 0:03:30.6]} 30. Rf4 {[%clk 0:02:46.8]} 30... d3
{[%clk 0:03:17.3]} 31. Kf2 {[%clk 0:02:45]} 31... Kg7 {[%clk 0:03:05.9]} 32. Ke3
{[%clk 0:02:42.4]} 32... Kg6 {[%clk 0:03:01.5]} 33. Rh4 {[%clk 0:02:39]} 33...
Kg5 {[%clk 0:02:52.9]} 34. Rh7 {[%clk 0:02:37]} 34... Rd8 {[%clk 0:02:31.2]} 35.
Rxa7 {[%clk 0:02:28]} 35... d5 {[%clk 0:02:30.2]} 36. h4+ {[%clk 0:02:08.1]}
36... Kf6 {[%clk 0:02:25.3]} 37. Kd2 {[%clk 0:01:55.4]} 37... dxc4 {[%clk
0:02:22.7]} 38. bxc4 {[%clk 0:01:53.1]} 38... e3+ {[%clk 0:02:21.8]} 39. Kd1
{[%clk 0:01:26.9]} 39... Rd4 {[%clk 0:02:11.4]} 40. Ra6 {[%clk 0:01:23.6]} 40...
Rxc4 {[%clk 0:02:09.8]} 41. Rxb6+ {[%clk 0:01:22.4]} 41... Kg7 {[%clk
0:02:07.7]} 42. Rd6 {[%clk 0:01:05.5]} 42... d2 {[%clk 0:02:03.7]} 43. Ke2
{[%clk 0:01:00.9]} 43... Rc1 {[%clk 0:02:00]} 44. Kxe3 {[%clk 0:00:48.1]} 44...
d1=Q {[%clk 0:01:57.9]} 45. Rxd1 {[%clk 0:00:46.3]} 45... Rxd1 {[%clk
0:01:56.6]} 46. Kf4 {[%clk 0:00:46.2]} 46... Kf6 {[%clk 0:01:54.3]} 47. Kf3
{[%clk 0:00:32.2]} 47... Ra1 {[%clk 0:01:52.1]} 48. g4 {[%clk 0:00:29.9]} 48...
Rxa2 {[%clk 0:01:51.1]} 49. gxf5 {[%clk 0:00:26.4]} 49... Kxf5 {[%clk
0:01:50.2]} 0-1

[Event "Live Chess"]
[Site "Chess.com"]
[Date "2024.06.02"]
[Round "-"]
[White "GwaryTek"]
[Black "Queensandpawns"]
[Result "0-1"]
[WhiteElo "1918"]
[BlackElo "2306"]
[TimeControl "300"]
[EndTime "16:46:02 PDT"]
[Termination "Queensandpawns won on time"]

1. d4 {[%clk 0:04:55.5]} 1... e5 {[%clk 0:04:59.9]} 2. dxe5 {[%clk 0:04:54.2]}
2... Bc5 {[%clk 0:04:59.6]} 3. Nf3 {[%clk 0:04:53.8]} 3... d6 {[%clk 0:04:59.4]}
4. Nc3 {[%clk 0:04:52]} 4... Ne7 {[%clk 0:04:59.3]} 5. Ne4 {[%clk 0:04:48.8]}
5... O-O {[%clk 0:04:57.1]} 6. Nxc5 {[%clk 0:04:27.3]} 6... dxc5 {[%clk
0:04:56]} 7. Qxd8 {[%clk 0:04:26.3]} 7... Rxd8 {[%clk 0:04:55.9]} 8. Bg5 {[%clk
0:04:24.9]} 8... Nbc6 {[%clk 0:04:54.9]} 9. Rd1 {[%clk 0:04:15.5]} 9... Be6
{[%clk 0:04:54.3]} 10. e3 {[%clk 0:04:09.1]} 10... Nb4 {[%clk 0:04:53.4]} 11.
Bd3 {[%clk 0:03:35.7]} 11... Re8 {[%clk 0:04:50.5]} 12. a3 {[%clk 0:03:27.8]}
12... Nbc6 {[%clk 0:04:49.8]} 13. Bxe7 {[%clk 0:02:45.2]} 13... Nxe7 {[%clk
0:04:49.7]} 14. O-O {[%clk 0:02:40.8]} 14... c4 {[%clk 0:04:48.8]} 15. Be4
{[%clk 0:02:36.8]} 15... c6 {[%clk 0:04:48.7]} 16. Nd4 {[%clk 0:02:30]} 16...
Bd5 {[%clk 0:04:46.8]} 17. Bxd5 {[%clk 0:02:15.2]} 17... Nxd5 {[%clk 0:04:46.7]}
18. Nf3 {[%clk 0:02:04.4]} 18... Rad8 {[%clk 0:04:44.5]} 19. h3 {[%clk 0:02:00]}
19... Nb6 {[%clk 0:04:41]} 20. b3 {[%clk 0:01:48.7]} 20... c3 {[%clk 0:04:39.2]}
21. Rfe1 {[%clk 0:01:44.6]} 21... Nd5 {[%clk 0:04:37.1]} 22. Kf1 {[%clk
0:01:40.5]} 22... b5 {[%clk 0:04:35]} 23. Nd4 {[%clk 0:01:07.1]} 23... Rc8
{[%clk 0:04:28.3]} 24. f4 {[%clk 0:01:04.8]} 24... a5 {[%clk 0:04:27.2]} 25.
Nxc6 {[%clk 0:00:58.1]} 25... Nxe3+ {[%clk 0:04:17.6]} 26. Rxe3 {[%clk
0:00:55.4]} 26... Rxc6 {[%clk 0:04:17.5]} 27. Red3 {[%clk 0:00:43.5]} 27... h5
{[%clk 0:04:09.2]} 28. Kf2 {[%clk 0:00:39.8]} 28... Kh7 {[%clk 0:04:08.4]} 29.
Kf3 {[%clk 0:00:38.7]} 29... b4 {[%clk 0:04:07.8]} 30. axb4 {[%clk 0:00:36.4]}
30... axb4 {[%clk 0:04:07.7]} 31. Rd4 {[%clk 0:00:34.6]} 31... Rb8 {[%clk
0:04:06.5]} 32. g4 {[%clk 0:00:31.6]} 32... hxg4+ {[%clk 0:04:05.2]} 33. hxg4
{[%clk 0:00:31.5]} 33... Kg6 {[%clk 0:04:01.7]} 34. Rh1 {[%clk 0:00:17.4]} 34...
f6 {[%clk 0:03:55.7]} 35. f5+ {[%clk 0:00:15.7]} 35... Kf7 {[%clk 0:03:55]} 36.
e6+ {[%clk 0:00:14.6]} 36... Kg8 {[%clk 0:03:50.5]} 37. Rhd1 {[%clk 0:00:11.7]}
37... Rcc8 {[%clk 0:03:49.3]} 38. Rd7 {[%clk 0:00:10.4]} 38... Re8 {[%clk
0:03:47.2]} 39. Rf7 {[%clk 0:00:08.9]} 39... Rf8 {[%clk 0:03:46.3]} 40. Rdd7
{[%clk 0:00:03.3]} 40... Rxf7 {[%clk 0:03:45.9]} 41. Rxf7 {[%clk 0:00:02.5]}
41... Rd8 {[%clk 0:03:44.5]} 42. Rb7 {[%clk 0:00:01.1]} 42... Re8 {[%clk
0:03:43.7]} 0-1

[Event "Live Chess"]
[Site "Chess.com"]
[Date "2024.06.02"]
[Round "-"]
[White "NeilDruggan73"]
[Black "oscalik"]
[Result "0-1"]
[WhiteElo "1740"]
[BlackElo "2280"]
[TimeControl "300"]
[EndTime "16:46:07 PDT"]
[Termination "oscalik won by checkmate"]

1. d4 {[%clk 0:04:56.6]} 1... Nf6 {[%clk 0:04:58.3]} 2. Bg5 {[%clk 0:04:54.1]}
2... d5 {[%clk 0:04:56]} 3. Bxf6 {[%clk 0:04:52.8]} 3... gxf6 {[%clk 0:04:54.2]}
4. e3 {[%clk 0:04:52.4]} 4... c5 {[%clk 0:04:52.3]} 5. Nf3 {[%clk 0:04:44.5]}
5... Nc6 {[%clk 0:04:50.8]} 6. dxc5 {[%clk 0:04:33.4]} 6... e5 {[%clk
0:04:49.1]} 7. Be2 {[%clk 0:04:29.6]} 7... Bxc5 {[%clk 0:04:47.2]} 8. O-O {[%clk
0:04:26.6]} 8... Be6 {[%clk 0:04:45.2]} 9. c4 {[%clk 0:04:24.1]} 9... d4 {[%clk
0:04:43.4]} 10. exd4 {[%clk 0:04:11.5]} 10... Nxd4 {[%clk 0:04:35.7]} 11. Nxd4
{[%clk 0:03:59.9]} 11... Bxd4 {[%clk 0:04:33.9]} 12. Qc2 {[%clk 0:03:54.2]}
12... Qd7 {[%clk 0:04:28.1]} 13. Nd2 {[%clk 0:03:42.8]} 13... O-O-O {[%clk
0:04:17.4]} 14. Rad1 {[%clk 0:03:41]} 14... Qc7 {[%clk 0:04:02.8]} 15. Ne4
{[%clk 0:03:34.8]} 15... f5 {[%clk 0:03:50.6]} 16. Nf6 {[%clk 0:03:22.7]} 16...
Kb8 {[%clk 0:03:42.3]} 17. Qa4 {[%clk 0:03:11.8]} 17... Qe7 {[%clk 0:03:16.8]}
18. Nd5 {[%clk 0:03:03.8]} 18... Rxd5 {[%clk 0:03:00]} 19. cxd5 {[%clk
0:03:00.2]} 19... Bxd5 {[%clk 0:02:59.5]} 20. Rxd4 {[%clk 0:02:54]} 20... exd4
{[%clk 0:02:58.1]} 21. Qxd4 {[%clk 0:02:52.2]} 21... Rd8 {[%clk 0:02:51]} 22.
Rd1 {[%clk 0:02:41.4]} 22... Qxe2 {[%clk 0:02:39.9]} 23. h3 {[%clk 0:02:17.7]}
23... Qe4 {[%clk 0:02:32.6]} 24. Qg7 {[%clk 0:02:12.7]} 24... Qe2 {[%clk
0:02:07]} 25. Rxd5 {[%clk 0:02:01.8]} 25... Rxd5 {[%clk 0:01:53]} 26. Qf8+
{[%clk 0:02:00.4]} 26... Kc7 {[%clk 0:01:52.1]} 27. Qxf7+ {[%clk 0:01:59.8]}
27... Rd7 {[%clk 0:01:51.6]} 28. Qxf5 {[%clk 0:01:56.1]} 28... Qd1+ {[%clk
0:01:44]} 29. Kh2 {[%clk 0:01:53.7]} 29... Qd6+ {[%clk 0:01:43.5]} 30. Kg1
{[%clk 0:01:47.3]} 30... b6 {[%clk 0:01:36.3]} 31. a3 {[%clk 0:01:34.7]} 31...
Qd5 {[%clk 0:01:30.3]} 32. Qf4+ {[%clk 0:01:32.4]} 32... Kb7 {[%clk 0:01:29.1]}
33. b4 {[%clk 0:01:28]} 33... Rg7 {[%clk 0:01:27.4]} 34. g3 {[%clk 0:01:24.5]}
34... Re7 {[%clk 0:01:23.2]} 35. Qg4 {[%clk 0:01:13.7]} 35... Re1+ {[%clk
0:01:20.8]} 36. Kh2 {[%clk 0:01:07]} 36... Rh1# {[%clk 0:01:20.7]} 0-1

[Event "Live Chess"]
[Site "Chess.com"]
[Date "2024.06.02"]
[Round "-"]
[White "wadsy27"]
[Black "WelshTiger"]
[Result "1-0"]
[WhiteElo "2581"]
[BlackElo "2454"]
[TimeControl "300"]
[EndTime "16:46:07 PDT"]
[Termination "wadsy27 won by resignation"]

1. c4 {[%clk 0:04:57.9]} 1... e6 {[%clk 0:04:56.1]} 2. g3 {[%clk 0:04:57.1]}
2... d5 {[%clk 0:04:53.7]} 3. Bg2 {[%clk 0:04:56.7]} 3... Nf6 {[%clk 0:04:53.2]}
4. Nf3 {[%clk 0:04:56.3]} 4... Be7 {[%clk 0:04:50.5]} 5. O-O {[%clk 0:04:55.8]}
5... O-O {[%clk 0:04:49.2]} 6. b3 {[%clk 0:04:55.4]} 6... c6 {[%clk 0:04:36.8]}
7. Bb2 {[%clk 0:04:48.6]} 7... Nbd7 {[%clk 0:04:35.3]} 8. Nc3 {[%clk 0:04:46.1]}
8... b6 {[%clk 0:04:34.3]} 9. d3 {[%clk 0:04:44.7]} 9... Bb7 {[%clk 0:04:33.2]}
10. e4 {[%clk 0:04:44.3]} 10... dxe4 {[%clk 0:04:26.9]} 11. dxe4 {[%clk
0:04:44.2]} 11... Nc5 {[%clk 0:04:24.3]} 12. e5 {[%clk 0:04:34.9]} 12... Ng4
{[%clk 0:04:10.1]} 13. Ba3 {[%clk 0:04:18.4]} 13... Qc7 {[%clk 0:04:03]} 14. Qe2
{[%clk 0:04:12.7]} 14... a5 {[%clk 0:03:47.7]} 15. h3 {[%clk 0:04:09.7]} 15...
Nh6 {[%clk 0:03:46.1]} 16. g4 {[%clk 0:04:09.3]} 16... a4 {[%clk 0:03:35.5]} 17.
b4 {[%clk 0:03:56.3]} 17... Na6 {[%clk 0:03:27.7]} 18. Rab1 {[%clk 0:03:54.5]}
18... c5 {[%clk 0:03:22.6]} 19. b5 {[%clk 0:03:52.2]} 19... Nb4 {[%clk
0:03:21.3]} 20. Ne4 {[%clk 0:03:49.2]} 20... Bxe4 {[%clk 0:03:09.6]} 21. Qxe4
{[%clk 0:03:47.8]} 21... Nxa2 {[%clk 0:03:07.9]} 22. Ra1 {[%clk 0:03:37.8]}
22... Nb4 {[%clk 0:03:02.3]} 23. Bc1 {[%clk 0:03:36.4]} 23... f5 {[%clk
0:02:51.2]} 24. exf6 {[%clk 0:03:31.3]} 24... Bxf6 {[%clk 0:02:40.4]} 25. Ra3
{[%clk 0:03:16.9]} 25... Nf7 {[%clk 0:02:34.5]} 26. g5 {[%clk 0:03:12.3]} 26...
Be7 {[%clk 0:02:22.5]} 27. g6 {[%clk 0:03:01.7]} 27... hxg6 {[%clk 0:02:20.7]}
28. Qxg6 {[%clk 0:03:01.1]} 28... Bf6 {[%clk 0:02:09.2]} 29. Ng5 {[%clk
0:02:38.9]} 29... Nxg5 {[%clk 0:02:07.9]} 30. Bxg5 {[%clk 0:02:37.5]} 30... Rad8
{[%clk 0:01:54.7]} 31. Be4 {[%clk 0:02:12.1]} 31... Bxg5 {[%clk 0:01:53.5]} 32.
Qh7+ {[%clk 0:02:09.1]} 32... Kf7 {[%clk 0:01:52.2]} 33. Qh5+ {[%clk 0:02:08.7]}
33... Ke7 {[%clk 0:01:36.1]} 34. Qxg5+ {[%clk 0:02:03.1]} 34... Kf7 {[%clk
0:01:21.5]} 35. Bg6+ {[%clk 0:01:54.7]} 35... Kg8 {[%clk 0:01:19.7]} 36. Qh5
{[%clk 0:01:52.5]} 36... Rf6 {[%clk 0:01:14.7]} 37. Qh7+ {[%clk 0:01:50.9]}
37... Kf8 {[%clk 0:01:14.1]} 38. Qh8+ {[%clk 0:01:50.5]} 38... Ke7 {[%clk
0:01:10.9]} 39. Qxg7+ {[%clk 0:01:50]} 1-0

[Event "Live Chess"]
[Site "Chess.com"]
[Date "2024.06.02"]
[Round "-"]
[White "Dhaydon19"]
[Black "booktrunk"]
[Result "1-0"]
[WhiteElo "2676"]
[BlackElo "1484"]
[TimeControl "300"]
[EndTime "16:46:14 PDT"]
[Termination "Dhaydon19 won by resignation"]

1. d4 {[%clk 0:04:55.7]} 1... e6 {[%clk 0:04:48.2]} 2. c4 {[%clk 0:04:48.7]}
2... b6 {[%clk 0:04:44.8]} 3. Nf3 {[%clk 0:04:47.3]} 3... Bb7 {[%clk 0:04:43.6]}
4. g3 {[%clk 0:04:47]} 4... h6 {[%clk 0:04:40.2]} 5. Bg2 {[%clk 0:04:46.1]} 5...
Nf6 {[%clk 0:04:39]} 6. O-O {[%clk 0:04:45.4]} 6... Be7 {[%clk 0:04:35.4]} 7.
Nc3 {[%clk 0:04:44.5]} 7... O-O {[%clk 0:04:33.6]} 8. Qc2 {[%clk 0:04:42.7]}
8... c5 {[%clk 0:04:31.4]} 9. d5 {[%clk 0:04:39.7]} 9... exd5 {[%clk 0:04:30.5]}
10. cxd5 {[%clk 0:04:37.6]} 10... Qc8 {[%clk 0:04:25.9]} 11. e4 {[%clk
0:04:34.7]} 11... Ba6 {[%clk 0:04:20.1]} 12. Re1 {[%clk 0:04:33]} 12... d6
{[%clk 0:04:17]} 13. e5 {[%clk 0:04:31.6]} 13... dxe5 {[%clk 0:04:14.3]} 14.
Nxe5 {[%clk 0:04:30.4]} 14... Bb7 {[%clk 0:04:09.2]} 15. Bf4 {[%clk 0:04:24.9]}
15... Nbd7 {[%clk 0:04:06.2]} 16. Nc4 {[%clk 0:04:23]} 16... Re8 {[%clk
0:03:56.3]} 17. Rxe7 {[%clk 0:04:20]} 17... Rxe7 {[%clk 0:03:54]} 18. Nd6 {[%clk
0:04:19.3]} 18... Qc7 {[%clk 0:03:43.2]} 19. Nxb7 {[%clk 0:04:13.9]} 19... Qxb7
{[%clk 0:03:29.7]} 20. d6 {[%clk 0:04:11.6]} 20... Qxg2+ {[%clk 0:03:12.2]} 21.
Kxg2 {[%clk 0:04:08.8]} 21... Re6 {[%clk 0:03:12.1]} 22. Rd1 {[%clk 0:04:05.7]}
22... Rae8 {[%clk 0:03:07]} 23. h3 {[%clk 0:04:00.2]} 23... Ne4 {[%clk
0:03:02.2]} 24. Nxe4 {[%clk 0:03:55.8]} 24... Rxe4 {[%clk 0:03:01.1]} 25. Qd3
{[%clk 0:03:49.2]} 25... Re2 {[%clk 0:02:59]} 26. Qb5 {[%clk 0:03:46.9]} 26...
Rc2 {[%clk 0:02:53.5]} 27. Qxd7 {[%clk 0:03:43.5]} 27... Ree2 {[%clk 0:02:51.3]}
28. Be3 {[%clk 0:03:42.8]} 28... Rxb2 {[%clk 0:02:48.5]} 29. Qc8+ {[%clk
0:03:41.1]} 29... Kh7 {[%clk 0:02:45]} 30. Qf5+ {[%clk 0:03:40.6]} 30... g6
{[%clk 0:02:42.5]} 31. Qxf7+ {[%clk 0:03:39.3]} 31... Kh8 {[%clk 0:02:41.6]} 32.
d7 {[%clk 0:03:38.6]} 32... Rxf2+ {[%clk 0:02:39.6]} 33. Bxf2 {[%clk 0:03:36.3]}
33... Rxf2+ {[%clk 0:02:37.8]} 34. Kxf2 {[%clk 0:03:35.7]} 1-0